Cogmind - Beta 13 @@@ ROGUE MODE // 2024.04.02 @ 18:53:00 Player: Oldman Pu Result: Destroyed by 9G-GJ5(R) with Subdweller Machine Gun Performance ------------- Evolutions (0) 0 Regions Visited (2) 400 Robots Destroyed (18) 90 Value Destroyed (323) 323 Prototype IDs (0) 0 Alien Tech Used (0) 0 Bonus (0) 0 TOTAL SCORE: 813 Bonus ------- None Cogmind --------- Core Integrity 0/250 Matter 295/300 Energy 250/250 System Corruption 3% Temperature Cool (0) Movement Rolling (140) Ox4 Location -10/Subcaves Parts ------- > --- POWER (1) -------- Ion Engine > --- PROPULSION (2) --- Wheel > --- UTILITY (2) ------ Improved Heat Sink High-capacity Storage Unit > --- WEAPON (2) ------- Light Assault Rifle Light Assault Rifle > --- INVENTORY (20) --- Ion Engine Ion Engine Ion Engine Light Ion Engine Spiked Treads Heat Sink Light Assault Rifle Light Assault Rifle Peak State ------------ > --- POWER ------------ Ion Engine > --- PROPULSION ------- Wheel > --- UTILITY ---------- Improved Heat Sink High-capacity Storage Unit > --- WEAPON ----------- Light Assault Rifle Subdweller Machine Gun > --- INVENTORY -------- Ion Engine Ion Engine Ion Engine Light Ion Engine Spiked Treads Wheel Heat Sink Light Assault Rifle Light Assault Rifle [Rating: 10] Favorites ----------- Power Ion Engine Engine Ion Engine Propulsion Wheel Wheel Wheel Utility Improved Heat Sink Device Improved Heat Sink Storage High-capacity Storage Unit Weapon Light Assault Rifle Ballistic Gun Light Assault Rifle Build | -11 -10 -10 ------- Run | Yrd Mat Sub Slots Evolved . | . . . Power . | . . . Propulsion . | . . . Utility . | . . . Weapon . | . . . Parts Attached 19 | 6 9 4 Power 5 | 1 3 1 Engine 5 | 1 3 1 Core . | . . . Reactor . | . . . Propulsion 4 | 2 1 1 Treads . | . . . Leg . | . . . Wheel 4 | 2 1 1 Hover . | . . . Flight . | . . . Utility 4 | 1 3 . Device 1 | . 1 . Storage 3 | 1 2 . Processor . | . . . Hackware . | . . . Protection . | . . . Artifact . | . . . Weapon 6 | 2 2 2 Energy Gun . | . . . Energy Cannon . | . . . Ballistic Gun 6 | 2 2 2 Ballistic Cannon . | . . . Launcher . | . . . Special Weapon . | . . . Impact Weapon . | . . . Slashing Weapon . | . . . Piercing Weapon . | . . . Special Melee Weapon . | . . . Unidentified Prototypes . | . . . Parts Lost 5 | . 3 2 Power . | . . . Propulsion 3 | . 2 1 Utility . | . . . Weapon 2 | . 1 1 Highest Loss Streak 2 | . 2 2 To Critical Strikes . | . . . Average Slot Usage (%) 84 | . 84 87 Engine 13 | . 13 14 Wheel 16 | . 16 16 Device 11 | . 11 14 Storage 14 | . 14 14 Ballistic Gun 27 | . 27 28 Naked Turns . | . . . Heaviest Build 89 | 13 89 51 Greatest Support 32 | 32 32 20 Greatest Overweight (x) 8 | 2 8 5 Average Overweight (x) 4 | . 4 4 Largest Inventory Capacity 25 | 8 25 20 Average Capacity 19 | 6 19 20 Most Carried 9 | . 5 9 Average Carried 3 | . 3 7 Final Capacity 20 | 8 20 20 Final Carried 8 | . 5 8 Class Distribution -------------------- 62% | Scavenger-Mutant 37% | Mutant Dominant Class ---------------- Scavenger-Mutant | -10/Materials Mutant | -10/Subcaves Resources | -11 -10 -10 ----------- Run | Yrd Mat Sub Matter Collected 635 | 247 314 74 Remotely . | . . . Salvage Created 464 | . 416 48 Parts 48 | . 40 8 Haulers Intercepted 1 | . 1 . Recyclers Shooed 2 | . 2 . Parts Field Recycled . | . . . Retrieved Matter . | . . . Parts Self-Destructed 9 | . . 9 Prevented . | . . . Kills | -11 -10 -10 ------- Run | Yrd Mat Sub Combat Hostiles Destroyed 14 | . 11 3 Guns 14 | . 11 3 Classes Destroyed 5 | . 5 . Hauler 1 | . 1 . Operator 1 | . 1 . Watcher 2 | . 2 . Swarmer 9 | . 6 3 Grunt 5 | . 5 . Best Kill Streak 5 | . 5 3 Combat Bots Only 5 | . 5 3 Max Kills in Single Turn 1 | . 1 1 Gunslinging . | . . . Exploded . | . . . Melee . | . . . Uniques/NPCs Destroyed . | . . . Combat | -11 -10 -10 -------- Run | Yrd Mat Sub Hostile Shots Fired 127 | . 75 52 Missed 34 | . 16 18 Damage Taken 860 | . 553 307 Core 266 | . 157 109 Absorbed by Shields . | . . . Core Remaining (%) 100 | 100 . . Volleys Fired 68 | . 61 7 Largest 2 | . 2 2 Hottest 50 | . 40 50 Shots Fired 132 | . 120 12 Gun 132 | . 120 12 Cannon . | . . . Launcher . | . . . Special . | . . . Kinetic 132 | . 120 12 Thermal . | . . . Explosive . | . . . Electromagnetic . | . . . Robot Hit Streak 10 | . 10 3 Robot Miss Streak 6 | . 6 3 Penetration Max . | . . . Secondary Targets 3 | . 3 . Max Gunslinging Chain 1 | . 1 . Shots Hit Robots 76 | . 71 5 Core Hits 35 | . 30 5 Critical Kills . | . . . Critical Parts Destroyed . | . . . Critical Strikes . | . . . Melee Attacks . | . . . Impact . | . . . Slashing . | . . . Piercing . | . . . Sneak Attacks . | . . . Combat Hostiles . | . . . Follow-up Attacks . | . . . Damage Inflicted 766 | . 703 63 Guns 748 | . 685 63 Cannons . | . . . Explosions . | . . . Melee . | . . . Ramming 18 | . 18 . Kinetic 748 | . 685 63 Thermal . | . . . Explosive . | . . . Electromagnetic . | . . . Impact . | . . . Slashing . | . . . Piercing . | . . . Highest Corruption 3 | . 3 3 Average Corruption 2 | . 2 3 Corruption Purged . | . . . Corruption Blocked . | . . . Effects 30 | . 22 8 Message Errors 5 | . 4 1 Matter Fused 9 | . 5 4 Heat Flow Errors 3 | . 3 . Energy Discharges 6 | . 5 1 Parts Rejected 1 | . 1 . Misfires 1 | . 1 . Alerts 3 | . 2 1 Weapon Failures 2 | . 1 1 Overload Shots . | . . . Overflow Damage . | . . . Projectiles . | . . . Explosions . | . . . Melee . | . . . Knockbacks . | . . . Impact . | . . . Kinetic . | . . . Secondary . | . . . Self-Inflicted Damage 9 | . 9 . Shots . | . . . Rammed 1 | . 1 . Targets Rammed 1 | . 1 . Kicked . | . . . Crushed . | . . . Highest Temperature 259 | . 259 . Average Temperature 72 | . 72 . Received Heat Transfer 213 | . 147 66 Siege Activations . | . . . Robots Corrupted . | . . . Combat Hostiles . | . . . Parts Fried . | . . . Impact Corruptions . | . . . Robots Melted . | . . . Combat Hostiles . | . . . Parts Melted . | . . . Heat Transferred . | . . . Parts Sabotaged . | . . . Parts Stolen . | . . . Parts Stripped . | . . . Power Chain Reactions . | . . . Alert | -11 -10 -10 ------- Run | Yrd Mat Sub Peak Influence 218 | . 218 . Initial . | . . . Average 66 | . 69 . Maximum Alert Level 1 | . 1 . Low Security (%) 95 | 100 95 . Level 1 4 | . 4 . Level 2 . | . . . Level 3 . | . . . Level 4 . | . . . Level 5 . | . . . High Security . | . . . Max Security . | . . . Squads Dispatched 2 | . 2 . Investigation . | . . . Extermination . | . . . Reinforcement 2 | . 2 . Assault . | . . . Garrison . | . . . Intercept . | . . . Searches Triggered . | . . . Construction Impeded . | . . . Haulers Reinforced . | . . . Active Scanning Responses . | . . . Cargo Convoy Interrupts . | . . . Stealth | -11 -10 -10 --------- Run | Yrd Mat Sub Distress Signals 3 | . 3 . Communications Jammed . | . . . Distress Signals . | . . . Times Spotted 33 | . 21 12 Peak Tracking Total 7 | . 7 5 Tactical Retreats 1 | . . 1 Traps | -11 -10 -10 ------- Run | Yrd Mat Sub Traps Triggered 3 | . 3 . Indirectly . | . . . Trap Hack Attempts . | . . . Triggered . | . . . Disarmed . | . . . Reprogrammed . | . . . Reused . | . . . Traps Extracted . | . . . Installed . | . . . Triggered . | . . . Machines | -11 -10 -10 ---------- Run | Yrd Mat Sub Machines Disabled . | . . . Max in Single Turn . | . . . Machines Repaired . | . . . Machines Dismantled . | . . . Machines Sabotaged . | . . . Overloaded Fab Kills . | . . . Hacking | -11 -10 -10 --------- Run | Yrd Mat Sub Machines Accessed 4 | . 4 . Terminals 3 | . 3 . Fabricators . | . . . Repair Stations . | . . . Recycling Units 1 | . 1 . Scanalyzers . | . . . Garrison Access . | . . . Total Hacks 11 | . 11 . Successful 8 | . 8 . Failed 3 | . 3 . Catastrophic . | . . . Database Lockouts . | . . . Manual . | . . . Terminals 10 | . 10 . Fabricators . | . . . Repair Stations . | . . . Recycling Units 1 | . 1 . Scanalyzers . | . . . Garrison Access . | . . . Terminal Hacks 7 | . 7 . Record 3 | . 3 . Emergency Access Points 1 | . 1 . Locate Traps 1 | . 1 . Hauler Manifests 1 | . 1 . Registered Prototypes 1 | . 1 . Fabricator Hacks . | . . . Repair Station Hacks . | . . . Recycling Unit Hacks 1 | . 1 . Report Inventory 1 | . 1 . Scanalyzer . | . . . Garrison Access Hacks . | . . . Unauthorized Hacks . | . . . Terminals . | . . . Fabricators . | . . . Repair Stations . | . . . Recycling Units . | . . . Scanalyzers . | . . . Garrison Access . | . . . Data Cores Recovered . | . . . Used . | . . . Hacking Detections 2 | . 2 . Full Trace Events . | . . . Feedback Events . | . . . Feedback Blocked . | . . . Robot Schematics Acquired . | . . . Robots Built . | . . . Authchips . | . . . Time . | . . . Total Robot Build Rating . | . . . Part Schematics Acquired . | . . . Parts Built . | . . . Authchips . | . . . Time . | . . . Total Part Build Rating . | . . . Parts Repaired . | . . . Time . | . . . Parts Recycled . | . . . Recycled Matter . | . . . Retrieved Matter . | . . . Retrieved Components . | . . . Parts Scanalyzed . | . . . Part Schematics Acquired . | . . . Parts Damaged . | . . . Bothacking | -11 -10 -10 ------------ Run | Yrd Mat Sub Used RIF Installer . | . . . Robots Hacked . | . . . Non-combat . | . . . Combat . | . . . Robot Hacks Applied . | . . . Relay Couplers Released . | . . . Fabnet Peak Effective % . | . . . Robots Rewired . | . . . Allies Hacked . | . . . Hacks Repelled . | . . . Allies | -11 -10 -10 -------- Run | Yrd Mat Sub Total Allies . | . . . Largest Group . | . . . Highest-Rated Group . | . . . Highest-Rated Ally . | . . . Total Orders . | . . . Ally Attacks . | . . . Total Damage . | . . . Kills . | . . . Allies Corrupted . | . . . Allies Melted . | . . . Intel | -11 -10 -10 ------- Run | Yrd Mat Sub Robot Analysis Total . | . . . Derelict Logs Recovered 1 | . . 1 Drone Launches . | . . . Drone Recoveries . | . . . Exploration | -11 -10 -10 ------------- Run | Yrd Mat Sub Turns Passed 1547 | 45 1152 350 Spaces Moved 881 | 37 617 227 Core 19 | 17 2 . Treads . | . . . Legs . | . . . Wheels 862 | 20 615 227 Hover . | . . . Flight . | . . . Fastest Speed 50 | 50 95 110 Average Speed 144 | 98 148 142 Slowest Speed 250 | 150 250 155 Overloaded Moves . | . . . Propulsion Burnouts . | . . . Robots Hopped . | . . . Cave-ins Triggered . | . . . Exploration Rate (%) 41 | 3 98 23 Regions Visited 2 Branch Regions 1 Pre-discovered Areas 1 | . . 1 Known Exits Taken . | . . . Unknown Exits Taken 2 | 1 1 . Scrap Searched . | . . . Spaces Dug . | . . . Terrain Destroyed . | . . . Melee . | . . . Projectile . | . . . AOE . | . . . Terrain Rammed . | . . . Walls Destroyed . | . . . Machines Disabled . | . . . Actions | -11 -10 -10 --------- Run | Yrd Mat Sub Total 1033 | 42 750 241 Wait 52 | . 51 1 Move 879 | 36 616 227 Hop . | . . . Pick Up 11 | . 9 2 Fast Attach 8 | 6 1 1 Attach 5 | . 4 1 Detach . | . . . Swap 6 | . 4 2 Drop 3 | . 3 . Fire 68 | . 61 7 Melee . | . . . Ram 1 | . 1 . Kick . | . . . Crush . | . . . Escape Stasis . | . . . Rewire . | . . . Trap . | . . . Miscellaneous . | . . . Route ------- -11/Scrapyard -10/Materials (discovered 5 exits: [*Mat x3] / [*Min] / [*Sub]) -10/Subcaves History --------- Turn | Location | Event 4 | -11/Scrapyard | Discovered new exit (range 16) 46 | -11/Scrapyard | Entered Materials 310 | -10/Materials | Build established: Mutant 363 | -10/Materials | Core integrity fell below 50% 363 | -10/Materials | Discovered new exit (range 13) 429 | -10/Materials | Discovered new exit (range 14) 706 | -10/Materials | Build established: Scavenger-Mutant 773 | -10/Materials | Discovered new exit (range 9) 1092 | -10/Materials | Discovered new exit (range 12) 1190 | -10/Materials | Discovered new exit (range 7) 1198 | -10/Materials | Entered Subcaves 1202 | -10/Subcaves | Shifting Twisted Machinery released Sub. Machine Gun 1226 | -10/Subcaves | Shifting Twisted Machinery released Spk. Treads 1460 | -10/Subcaves | Core integrity fell below 20% 1537 | -10/Subcaves | Learned location of Storage (-8) 1548 | -10/Subcaves | Destroyed by 9G-GJ5(R) with Subdweller Machine Gun Last Messages --------------- 01477_ Subatomizers dissect the Flight Unit. 01479_ Acquired 3 matter. 01481_ System corrupted: Matter fused (-5). 01481_ System corrupted: Lgt. Assault Rifle jammed. 01481_ S-10 Pest destroyed. 01482_ Flight Unit fries itself beyond repair. 01483_ Sub. Machine Gun destroyed. 01484_ S-10 Pest destroyed. 01485_ Acquired 3 matter. 01487_ Subatomizers dissect the Flight Unit. 01488_ Acquired Lgt. Assault Rifle. 01489_ Flight Unit fries itself beyond repair. 01490_ Acquired 10 matter. 01493_ Lgt. Ion Engine fries itself beyond repair. 01496_ Flight Unit fries itself beyond repair. 01501_ Lgt. Ion Engine fries itself beyond repair. 01508_ System corrupted: IFF burst signal emitted. 01529_ System corrupted: Matter fused (-5). 01537_ Acquired derelict log, extracted data. World map updated: -8/Storage. Map ----- +----------------------------------------------------+ | ?????????????????????????????????????????????????? | | ?????????????????????????????????????????????????? | | ?????????????????????????????????????????????????? | | ?????????????????????????????????????????????????? | | ?????????????????????????????????????????????????? | | ?????????????????????????????????????????????????? | | ?????????????????????????????????????????????????? | | ?????????????????????????????????????????????????? | | ?????????????????????????????????????????????????? | | ?????????????????????????????????????????????????? | | ?????????????????????????????????????????????????? | | ?????????????????????????????????????????????????? | | ?????????????????????????????????????????????????? | | ?????????????????????????????????????????????????? | | ?????????????????????????????????????????????????? | | ?????????????? ??????????????????????????????????? | | ????????????? ?????????????????????????????????? | | ????????????? ????????????????????????????????? | | ????????????# ???????????????????????????????? | | ????????????# ??##??????????????????????????? | | ????????????? ## #?????????????????????????? | | ??????????????? ############?????????????? | | ?????????????????# #?????????????? | | ??????????????????# #????????#??????? | | ???????????????????# ###????? #??????? | | ????????????????????# @ ##???? #??????? | | ??????????????????### #???? ##?????? | | ??????????????????# # # #???? #?????? | | ????????????????# #??? ##????? | | ????????????????## # #??? #????? | | ?????????????????## ### # ##????? #????? | | ??????????????????## #??#### ##????# #????? | | ???????????????????# ?????## #??## #?????? | | ???????????????????## ?????# #### #??????? | | ???????????????????? ??????# #???????? | | ??????????????????? ??????# R ##??????? | | ???????????????? ???????## R #??????? | | ???????????????? ???????## ## ##??????? | | ??????????????? ???????##### ###???????? | | ??????????????? ??####??## ##?????????? | | ???????????????? ## #### ##?????????? | | ?????????????????????# #?????????? | | ????????????????????????# ## #????? | | ????????????????????????## ### #### ##????? | | ?????????????????????????????# #??## #?????? | | ?????????????????????????????# #????# #?????? | | ?????????????????????????????# ##?????## ????? | | ????????????????????????????## #????????# ??? | | ????????????????????????????# #?????????# ??? | | ????????????????????????????## ##????????? ??? | +----------------------------------------------------+ Best States ------------- Heat Dissipation 39 Energy Generation 10 Energy Capacity 250 Matter Stores 300 Matter Capacity 300 Sight Range 16 Terrain Scan Density 10 Evasion (%) 41 Item Schematics ----------------- None Robot Schematics ------------------ None Fabricated ------------ Nothing Alien Tech Used ----------------- None Achievements -------------- None Challenges ------------ None Game ------ Seed WarpProcessingInitializer Manual? 0 Play Time 00:12:41 Cumulative 212.2 hours Start 2024.04.02 @ 18:42:16 End 2024.04.02 @ 18:53:00 Sessions 1 Manual Loads 0 Difficulty Rogue Special Mode None Game No. 165 Rogue 153 Adventurer 12 Explorer 0 Win Type - Total 1 Types 1/0/0/0/0/0/0/0/0 Lore% 28 Gallery% 44 Achievement% 32 Wizard Run 0 Options --------- Layout 1 ASCII 0 Keyboard 0 Movement Mouse Keybinds 0 Fullscreen 1 Font 32/SmallcapsGlow Map View 77x35 Zoom Use 0% Tactical HUD 1 Map Filters NONE Filters NONE Steam 1 RUN: a6bb5e44-92aa-44b6-8d1f-645ca18bf750